fUST/lending_fUST_20240617
["ID","MTS","AMOUNT","RATE_DAILY","PERIOD"]
[329704033,1718587864704,-1830.32,0.00018991,2]
[329704034,1718587864715,-500.0,0.00018991,2]
[329704035,1718587864727,-4703.61,0.00018991,2]
[329704036,1718587864738,-1803.2547105,0.00018995,2]
[329704037,1718587864748,-563.89093879,0.00019,2]
[329704038,1718587864762,-1000.0,0.00019,10]
[329704039,1718587864773,-500.0,0.00019,2]
[329704040,1718587864785,-807.87377587,0.00019,3]
[329704041,1718587864810,-2697.60230618,0.00019,2]
[329704042,1718587864822,-7284.7568286,0.00019,2]
[329704043,1718588014033,3000.0,0.000225,30]
[329704045,1718588145256,300.0,0.000225,30]
[329704053,1718588620818,3000.0,0.000225,30]
[329704096,1718589040865,-300.0,0.00014605,2]
[329704097,1718589040886,-500.0,0.00014606,2]
[329704098,1718589040901,-500.0,0.00014606,2]
[329704099,1718589040912,-500.0,0.00014606,2]
[329704100,1718589040929,-500.0,0.0001488,2]
[329704101,1718589040940,-578.23743599,0.0001488,2]
[329704102,1718589040952,-364.31210082,0.0001488,2]
[329704103,1718589040972,-275.12392946,0.00015154,2]
[329704104,1718589040982,-500.0,0.00015427,2]
[329704105,1718589041004,-500.0,0.00015427,2]
[329704106,1718589041016,-500.0,0.00015427,2]
[329704107,1718589041036,-500.0,0.00015427,2]
[329704108,1718589041052,-500.0,0.00015427,2]
[329704109,1718589041074,-500.0,0.00015427,2]
[329704110,1718589041109,-1379.32,0.00015427,2]
[329704111,1718589041128,-646.34807202,0.00015427,2]
[329704112,1718589041153,-500.0,0.00015427,2]
[329704113,1718589041195,-211.28862554,0.00015427,2]
[329704114,1718589041214,-500.0,0.00015427,2]
[329704115,1718589041252,-150.297,0.00015557,2]
[329704116,1718589041280,-405.48653051,0.00015701,2]
[329704117,1718589041311,-500.0,0.00015701,2]
[329704118,1718589041332,-500.0,0.00015701,2]
[329704119,1718589041343,-500.0,0.00015701,2]
[329704121,1718589041385,-500.0,0.00015701,2]
[329704123,1718589041399,-500.0,0.00015701,2]
[329704124,1718589041421,-1943.45,0.00015701,2]
[329704126,1718589041448,-500.0,0.00015701,2]
[329704128,1718589041462,-500.0,0.00015701,2]
[329704129,1718589041504,-1379.32,0.00015701,2]
[329704130,1718589041518,-500.0,0.00015701,2]
[329704131,1718589041535,-500.0,0.00015701,2]
[329704132,1718589041560,-500.0,0.00015701,2]
[329704133,1718589041573,-500.0,0.00015701,2]
[329704134,1718589041586,-500.0,0.00015701,2]
[329704135,1718589041612,-500.0,0.00015701,2]
[329704136,1718589041645,-500.0,0.00015701,2]
[329704137,1718589041673,-500.0,0.00015975,2]
[329704138,1718589041697,-860.35,0.00015975,2]
[329704139,1718589041709,-500.0,0.00015975,2]
[329704140,1718589041723,-500.0,0.00015975,2]
[329704141,1718589041734,-500.0,0.00015975,2]
[329704142,1718589041745,-500.0,0.00015975,2]
[329704143,1718589041758,-1943.45,0.00015975,2]
[329704144,1718589041768,-500.0,0.00015975,2]
[329704145,1718589041779,-500.0,0.00015975,2]
[329704146,1718589041801,-1379.32,0.00015975,2]
[329704147,1718589041812,-500.0,0.00015975,2]
[329704148,1718589041822,-500.0,0.00015975,2]
[329704149,1718589041836,-500.0,0.00015975,2]
[329704150,1718589041853,-508.12647692,0.00015975,2]
[329704151,1718589041864,-500.0,0.00015975,2]
[329704152,1718589041876,-500.0,0.00015975,2]
[329704153,1718589041887,-514.0268889,0.00015975,2]
[329704154,1718589041901,-540.21862075,0.00015975,2]
[329704155,1718589041915,-500.0,0.00015975,2]
[329704156,1718589041953,-505.43111205,0.00015975,2]
[329704157,1718589041974,-500.0,0.00015975,2]
[329704158,1718589042004,-500.0,0.00015975,2]
[329704159,1718589042025,-500.0,0.00015975,2]
[329704160,1718589042037,-500.0,0.00015975,2]
[329704161,1718589042048,-1356.42911957,0.00016,2]
[329704162,1718589042074,-195.89881516,0.00016149,2]
[329704163,1718589042100,-500.0,0.00016249,2]
[329704164,1718589042125,-860.35,0.00016249,2]
[329704165,1718589042152,-500.0,0.00016249,2]
[329704166,1718589042165,-500.0,0.00016249,2]
[329704167,1718589042177,-500.0,0.00016249,2]
[329704168,1718589042188,-500.0,0.00016249,2]
[329704169,1718589042210,-1943.45,0.00016249,2]
[329704170,1718589042222,-500.0,0.00016249,2]
[329704171,1718589042249,-500.0,0.00016249,2]
[329704172,1718589042275,-1379.32,0.00016249,2]
[329704173,1718589042286,-500.0,0.00016249,2]
[329704174,1718589042300,-500.0,0.00016249,2]
[329704175,1718589042353,-500.0,0.00016249,2]
[329704176,1718589042409,-500.0,0.00016249,2]
[329704177,1718589042421,-500.0,0.00016249,2]
[329704178,1718589042446,-500.0,0.00016249,2]
[329704179,1718589042480,-500.0,0.00016249,2]
[329704180,1718589042499,-500.0,0.00016249,2]
[329704181,1718589042512,-500.0,0.00016249,2]
[329704182,1718589042524,-398.12301811,0.00016338,2]
[329704183,1718589042538,-1105.13,0.00016438,2]
[329704184,1718589042569,-275.84951764,0.000165,2]
[329704185,1718589042589,-500.0,0.00016523,2]
[329704186,1718589042660,-860.35,0.00016523,2]
[329704187,1718589042672,-500.0,0.00016523,2]
[329704188,1718589042694,-500.0,0.00016523,2]
[329704189,1718589042717,-500.0,0.00016523,2]
[329704190,1718589042744,-500.0,0.00016523,2]
[329704191,1718589042757,-1943.45,0.00016523,2]
[329704192,1718589042769,-500.0,0.00016523,2]
[329704193,1718589042780,-500.0,0.00016523,2]
[329704194,1718589042791,-1379.32,0.00016523,2]
[329704195,1718589042812,-500.0,0.00016523,2]
[329704196,1718589042823,-500.0,0.00016523,2]
[329704197,1718589042835,-500.0,0.00016523,2]
[329704198,1718589042846,-500.0,0.00016523,2]
[329704199,1718589042857,-500.0,0.00016523,2]
[329704200,1718589042869,-500.0,0.00016523,2]
[329704201,1718589042880,-500.0,0.00016523,2]
[329704202,1718589042891,-500.0,0.00016523,2]
[329704203,1718589042912,-500.0,0.00016523,2]
[329704204,1718589042950,-1105.13,0.00016712,2]
[329704205,1718589042965,-524.54700399,0.00016797,2]
[329704206,1718589042989,-860.35,0.00016797,2]
[329704207,1718589043026,-500.0,0.00016797,2]
[329704208,1718589043038,-500.0,0.00016797,2]
[329704211,1718589043068,-500.0,0.00016797,2]
[329704213,1718589043092,-500.0,0.00016797,2]
[329704214,1718589043105,-1943.45,0.00016797,2]
[329704216,1718589043120,-500.0,0.00016797,2]
[329704218,1718589043134,-500.0,0.00016797,2]
[329704220,1718589043149,-1379.32,0.00016797,2]
[329704222,1718589043161,-500.0,0.00016797,2]
[329704224,1718589043181,-500.0,0.00016797,2]
[329704226,1718589043194,-519.83580843,0.00016797,2]
[329704228,1718589043217,-619.26416422,0.00016797,2]
[329704229,1718589043235,-500.0,0.00016797,2]
[329704230,1718589043249,-500.0,0.00016797,2]
[329704231,1718589043268,-500.0,0.00016797,2]
[329704232,1718589043302,-500.0,0.00016797,2]
[329704233,1718589043316,-500.0,0.00016797,2]
[329704234,1718589043337,-1105.13,0.00016986,2]
[329704235,1718589043350,-161.59826381,0.00016999,2]
[329704236,1718589043361,-6754.30989708,0.00017,2]
[329704237,1718589043378,-20000.0,0.00017071,2]
[329704238,1718589043390,-860.35,0.00017071,2]
[329704239,1718589043402,-500.0,0.00017071,2]
[329704240,1718589043412,-500.0,0.00017071,2]
[329704241,1718589043424,-239.77816936,0.00017071,2]
[329704242,1718589043437,-444.66832747,0.00017071,2]
[329704243,1718589043450,-1943.45,0.00017071,2]
[329704244,1718589043467,-500.0,0.00017071,2]
[329704245,1718589043481,-500.0,0.00017071,2]
[329704246,1718589043492,-1379.32,0.00017071,2]
[329704247,1718589043503,-500.0,0.00017071,2]
[329704248,1718589043533,-500.0,0.00017071,2]
[329704249,1718589043548,-500.0,0.00017071,2]
[329704250,1718589043572,-500.0,0.00017071,2]
[329704251,1718589043593,-500.0,0.00017071,2]
[329704252,1718589043605,-500.0,0.00017071,2]
[329704253,1718589043615,-500.0,0.00017071,2]
[329704254,1718589043628,-1105.13,0.0001726,2]
[329704255,1718589043639,-154.1560446,0.00017343,2]
[329704256,1718589043651,-860.35,0.00017345,2]
[329704257,1718589043671,-500.0,0.00017345,2]
[329704258,1718589043682,-500.0,0.00017345,2]
[329704259,1718589043693,-1943.45,0.00017345,2]
[329704260,1718589043707,-500.0,0.00017345,2]
[329704261,1718589043730,-500.0,0.00017345,2]
[329704262,1718589043749,-1379.32,0.00017345,2]
[329704263,1718589043778,-500.0,0.00017345,2]
[329704264,1718589043791,-500.0,0.00017345,2]
[329704265,1718589043802,-500.0,0.00017345,2]
[329704266,1718589043813,-500.0,0.00017345,2]
[329704267,1718589043825,-500.0,0.00017345,2]
[329704268,1718589043837,-500.0,0.00017345,2]
[329704269,1718589043848,-500.0,0.00017345,2]
[329704270,1718589043864,-305.0,0.0001753,2]
[329704271,1718589043875,-1105.13,0.00017533,2]
[329704272,1718589043910,-860.35,0.00017619,2]
[329704273,1718589043940,-500.0,0.00017619,2]
[329704274,1718589043956,-500.0,0.00017619,2]
[329704275,1718589043967,-1943.45,0.00017619,2]
[329704276,1718589043996,-500.0,0.00017619,2]
[329704278,1718589044037,-500.0,0.00017619,2]
[329704279,1718589044092,-1379.32,0.00017619,2]
[329704280,1718589044112,-500.0,0.00017619,2]
[329704281,1718589044126,-500.0,0.00017619,2]
[329704282,1718589044158,-500.0,0.00017619,2]
[329704283,1718589044174,-294.33026054,0.00017619,2]
[329704284,1718589044187,-500.0,0.00017619,2]
[329704285,1718589044216,-500.0,0.00017619,2]
[329704286,1718589044240,-500.0,0.00017619,2]
[329704287,1718589044254,-1105.13,0.00017807,2]
[329704288,1718589044267,-860.35,0.00017893,2]
[329704290,1718589044288,-500.0,0.00017893,2]
[329704291,1718589044301,-500.0,0.00017893,2]
[329704292,1718589044315,-1943.45,0.00017893,2]
[329704293,1718589044334,-500.0,0.00017893,2]
[329704294,1718589044346,-500.0,0.00017893,2]
[329704295,1718589044363,-1379.32,0.00017893,2]
[329704296,1718589044379,-500.0,0.00017893,2]
[329704297,1718589044396,-500.0,0.00017893,2]
[329704298,1718589044429,-500.0,0.00017893,2]
[329704299,1718589044452,-500.0,0.00017893,2]
[329704300,1718589044463,-500.0,0.00017893,2]
[329704301,1718589044475,-329.31204596,0.00017893,2]
[329704303,1718589044486,-6372.95535671,0.00018,2]
[329704304,1718589044500,-155.00155002,0.00018,2]
[329704305,1718589044518,-155.00155002,0.00018,2]
[329704306,1718589044530,-1098.59741552,0.00018,2]
[329704307,1718589044546,-2020.73185422,0.00018,2]
[329704308,1718589044577,-1000.0,0.00018,2]
[329704309,1718589044590,-208.0926591,0.0001803,2]
[329704310,1718589044601,-205.5018464,0.0001803,2]
[329704311,1718589044612,-205.3104842,0.0001803,2]
[329704312,1718589044623,-1105.13,0.00018081,2]
[329704313,1718589044635,-860.35,0.00018167,2]
[329704314,1718589044647,-500.0,0.00018167,2]
[329704315,1718589044659,-500.0,0.00018167,2]
[329704316,1718589044684,-1943.45,0.00018167,2]
[329704317,1718589044702,-500.0,0.00018167,2]
[329704318,1718589044725,-500.0,0.00018167,2]
[329704319,1718589044742,-1379.32,0.00018167,2]
[329704320,1718589044764,-500.0,0.00018167,2]
[329704321,1718589044776,-500.0,0.00018167,2]
[329704322,1718589044829,-500.0,0.00018167,2]
[329704323,1718589044848,-500.0,0.00018167,2]
[329704325,1718589044866,-500.0,0.00018167,2]
[329704326,1718589044878,-153.0,0.00018302,2]
[329704327,1718589044890,-153.0,0.00018302,2]
[329704328,1718589044911,-1105.13,0.00018355,2]
[329704329,1718589044927,-860.35,0.00018441,2]
[329704330,1718589044940,-500.0,0.00018441,2]
[329704331,1718589044967,-500.0,0.00018441,2]
[329704332,1718589044979,-1943.45,0.00018441,2]
[329704333,1718589044992,-500.0,0.00018441,2]
[329704334,1718589045003,-500.0,0.00018441,2]
[329704335,1718589045040,-1379.32,0.00018441,2]
[329704336,1718589045052,-500.0,0.00018441,2]
[329704337,1718589045064,-500.0,0.00018441,2]
[329704338,1718589045083,-500.0,0.00018441,2]
[329704339,1718589045131,-500.0,0.00018441,2]
[329704340,1718589045143,-500.0,0.00018441,2]
[329704341,1718589045156,-1000.0,0.000185,2]
[329704342,1718589045167,-1105.13,0.00018629,2]
[329704343,1718589045180,-151.0,0.0001863,2]
[329704344,1718589045192,-250.0,0.0001863,2]
[329704345,1718589045215,-860.35,0.00018715,2]
[329704346,1718589045231,-500.0,0.00018715,2]
[329704347,1718589045248,-500.0,0.00018715,2]
[329704348,1718589045260,-1943.45,0.00018715,2]
[329704349,1718589045272,-500.0,0.00018715,2]
[329704350,1718589045285,-500.0,0.00018715,2]
[329704351,1718589045297,-1379.32,0.00018715,2]
[329704352,1718589045311,-500.0,0.00018715,2]
[329704353,1718589045332,-500.0,0.00018715,2]
[329704354,1718589045355,-500.0,0.00018715,2]
[329704356,1718589045370,-500.0,0.00018715,2]
[329704357,1718589045391,-343.62017469,0.00018715,2]
[329704358,1718589045410,-175.33156124,0.00018808,7]
[329704359,1718589045440,-195.89881516,0.00018889,2]
[329704360,1718589045453,-1105.13,0.00018903,2]
[329704361,1718589045474,-151.0,0.00018904,2]
[329704362,1718589045486,-370.915601,0.00018986,2]
[329704363,1718589045497,-27172.63273388,0.00018989,15]
[329704364,1718589045510,-860.35,0.00018989,2]
[329704365,1718589045523,-500.0,0.00018989,2]
[329704366,1718589045535,-516.1,0.00018989,2]
[329704367,1718589045548,-1943.45,0.00018989,2]
[329704368,1718589045561,-500.0,0.00018989,2]
[329704369,1718589045597,-500.0,0.00018989,2]
[329704370,1718589045622,-1379.32,0.00018989,2]
[329704371,1718589045639,-500.0,0.00018989,2]
[329704372,1718589045658,-500.0,0.00018989,2]
[329704373,1718589045681,-500.0,0.00018989,2]
[329704374,1718589045702,-500.0,0.00018989,2]
[329704375,1718589045723,-1803.284175,0.00018995,2]
[329704376,1718589045737,-155.04856042,0.00018998,2]
[329704377,1718589045755,-2715.2431714,0.00019,2]
[329704378,1718589045790,-375.92989944,0.00019,2]
[329704379,1718589045803,-1349.60337399,0.00019,2]
[329704380,1718589045834,-10000.0,0.00019,2]
[329704381,1718589045850,-8274.85256069,0.00019,2]
[329704400,1718589049925,-1178.78100576,0.00019,2]
[329704420,1718589050435,-2000.91975676,0.00019,2]
[329704422,1718589050447,-1000.0,0.00019,2]
[329704426,1718589050473,-820.41134266,0.00019,2]
[329704428,1718589050528,-1591.40757841,0.00019078,2]
[329704488,1718589222517,3000.0,0.000225,30]
[329704490,1718589441761,155.0,0.000225,30]
[329704491,1718589446163,155.0,0.000225,30]
[329704492,1718589450778,155.0,0.000225,30]
[329704493,1718589455362,155.0,0.000225,30]
[329704494,1718589459951,155.0,0.000225,30]
[329704495,1718589464691,155.0,0.000225,30]
[329704496,1718589469377,155.0,0.000225,30]
[329704497,1718589474279,155.0,0.000225,30]
[329704498,1718589478990,155.0,0.000225,30]
[329704499,1718589483836,155.0,0.000225,30]
[329704500,1718589488484,155.0,0.000225,30]
[329704501,1718589493469,155.0,0.000225,30]
[329704502,1718589498306,247.36503686,0.000225,30]
[329704503,1718589815383,3000.0,0.000225,30]
[329704507,1718589983355,5000.0,0.00014,2]
[329704508,1718589999731,5056.57,0.000225,30]
[329704555,1718590240548,-808.92881548,0.00016,2]
[329704643,1718590418314,3000.0,0.000225,30]
[329704645,1718591014542,3000.0,0.000225,30]
[329704646,1718591024691,10000.0,0.000225,30]
[329704647,1718591063927,1532.55,0.00014,2]
[329704648,1718591080899,154.0,0.000236,120]
[329704804,1718591442180,-150.0,0.00015592,2]
[329704805,1718591442192,-1712.2430478,0.00016012,2]
[329704806,1718591442203,-275.84951764,0.000165,2]
[329704807,1718591442221,-461.02634944,0.00016969,2]
[329704808,1718591442232,-235.71029597,0.00016969,2]
[329704809,1718591442245,-300.0,0.00016999,2]
[329704810,1718591442256,-3475.57045912,0.00017068,13]
[329704811,1718591442272,-996.00104,0.00017068,13]
[329704896,1718591447375,-308.63790957,0.00017067,2]
[329704898,1718591447405,-6445.67198751,0.00017067,2]
[329704899,1718591447423,-1996.26989911,0.00017067,2]
[329704900,1718591447441,-34183.52767371,0.00017068,13]
[329704901,1718591447476,-4240.09516277,0.00017068,2]
[329704902,1718591447490,-558.2,0.00017068,2]
[329704904,1718591447504,-518.80000037,0.00017068,2]
[329704906,1718591447517,-533.9567357,0.00017068,2]
[329704907,1718591447528,-500.0,0.00017068,2]
[329704908,1718591447549,-500.0,0.00017068,2]
[329704909,1718591447564,-500.0,0.00017068,2]
[329704910,1718591447579,-515.32457142,0.00017068,2]
[329704911,1718591447603,-155.18189716,0.00017069,2]
[329704912,1718591447615,-156.12175965,0.00017069,2]
[329704913,1718591447627,-523.81017448,0.00017069,2]
[329704914,1718591447668,-510.31902475,0.00017069,2]
[329704915,1718591447684,-507.13096994,0.00017069,2]
[329704918,1718591447727,-516.55628249,0.00017069,2]
[329704919,1718591447744,-507.93643033,0.00017069,2]
[329704922,1718591447757,-511.40136158,0.00017069,2]
[329704924,1718591447774,-642.56887559,0.00017069,2]
[329704926,1718591447793,-519.45229105,0.00017069,2]
[329704928,1718591447807,-326.17576598,0.00017069,2]
[329704930,1718591447824,-505.55608107,0.00017069,2]
[329704933,1718591447839,-502.02851658,0.00017069,2]
[329704934,1718591447857,-501.96300792,0.00017069,2]
[329704936,1718591447870,-515.95058441,0.00017069,2]
[329704938,1718591447912,-518.40493868,0.00017069,2]
[329704940,1718591447928,-507.71928477,0.00017069,2]
[329704941,1718591447942,-506.23698746,0.00017069,2]
[329704942,1718591447954,-521.01041551,0.00017069,2]
[329704945,1718591447967,-506.1473414,0.00017069,2]
[329704946,1718591447987,-510.60396018,0.00017069,2]
[329704948,1718591447998,-500.0,0.00017069,2]
[329704951,1718591448016,-890.75,0.00017069,2]
[329704953,1718591448029,-500.0,0.00017069,2]
[329704954,1718591448040,-500.0,0.00017069,2]
[329704956,1718591448053,-518.31526428,0.00017069,2]
[329704958,1718591448072,-500.0,0.00017069,2]
[329704961,1718591448085,-574.72,0.00017069,2]
[329704963,1718591448097,-500.0,0.00017069,2]
[329704965,1718591448109,-500.0,0.00017069,2]
[329704967,1718591448120,-500.0,0.00017069,2]
[329704968,1718591448132,-500.0,0.00017069,2]
[329704971,1718591448146,-500.0,0.00017069,2]
[329704973,1718591448159,-500.0,0.00017069,2]
[329704975,1718591448175,-500.0,0.00017069,2]
[329704978,1718591448212,-502.6923686,0.00017069,2]
[329704980,1718591448228,-500.0,0.00017069,2]
[329704982,1718591448240,-500.0,0.00017069,2]
[329704984,1718591448252,-500.0,0.0001707,2]
[329704985,1718591448264,-507.06030194,0.0001707,2]
[329704987,1718591448276,-512.21323604,0.0001707,2]
[329704989,1718591448294,-269.13415341,0.0001707,2]
[329704990,1718591448307,-500.0,0.0001707,2]
[329704992,1718591448320,-517.39864231,0.0001707,2]
[329704994,1718591448334,-508.72528386,0.0001707,2]
[329704995,1718591448359,-500.0,0.0001707,2]
[329704997,1718591448372,-511.58985251,0.0001707,2]
[329704999,1718591448387,-507.63044409,0.0001707,2]
[329705001,1718591448409,-503.72917571,0.0001707,2]
[329705002,1718591448422,-513.07327984,0.0001707,2]
[329705004,1718591448436,-401.60485972,0.0001707,2]
[329705006,1718591448448,-507.16488129,0.0001707,2]
[329705008,1718591448460,-500.0,0.0001707,2]
[329705009,1718591448485,-513.53077147,0.0001707,2]
[329705011,1718591448503,-782.13,0.0001707,2]
[329705013,1718591448537,-503.48344658,0.0001707,2]
[329705015,1718591448549,-533.13072413,0.0001707,2]
[329705017,1718591448562,-20000.0,0.00017071,2]
[329705019,1718591448575,-558.2,0.00017342,2]
[329705020,1718591448598,-500.0,0.00017342,2]
[329705022,1718591448615,-890.75,0.00017343,2]
[329705024,1718591448632,-500.0,0.00017343,2]
[329705025,1718591448642,-500.0,0.00017343,2]
[329705027,1718591448654,-574.72,0.00017343,2]
[329705029,1718591448665,-500.0,0.00017343,2]
[329705031,1718591448676,-500.0,0.00017343,2]
[329705032,1718591448687,-376.0,0.00017343,2]
[329705033,1718591448704,-500.0,0.00017343,2]
[329705035,1718591448725,-332.16,0.00017343,2]
[329705037,1718591448739,-500.0,0.00017343,2]
[329705041,1718591448772,-500.0,0.00017343,2]
[329705043,1718591448792,-782.13,0.00017344,2]
[329705045,1718591448827,-235.71029594,0.00017477,2]
[329705047,1718591448846,-558.2,0.00017616,2]
[329705048,1718591448859,-500.0,0.00017616,2]
[329705050,1718591448886,-890.75,0.00017617,2]
[329705051,1718591448904,-644.91021015,0.00017617,2]
[329705053,1718591448920,-500.0,0.00017617,2]
[329705056,1718591448964,-574.72,0.00017617,2]
[329705058,1718591449031,-572.99806362,0.00017617,2]
[329705059,1718591449058,-500.0,0.00017617,2]
[329705061,1718591449073,-500.0,0.00017617,2]
[329705063,1718591449084,-613.27458165,0.00017617,2]
[329705065,1718591449101,-782.13,0.00017618,2]
[329705068,1718591449117,-558.2,0.0001789,2]
[329705070,1718591449133,-500.0,0.0001789,2]
[329705072,1718591449149,-890.75,0.00017891,2]
[329705075,1718591449182,-500.0,0.00017891,2]
[329705077,1718591449241,-574.72,0.00017891,2]
[329705079,1718591449290,-500.0,0.00017891,2]
[329705081,1718591449302,-621.07694334,0.00017891,2]
[329705083,1718591449317,-147.1013204,0.00017892,2]
[329705093,1718591449878,-500.0,0.00017617,2]
[329705094,1718591449889,-500.0,0.00017891,2]
[329705096,1718591449901,-635.0286796,0.00017892,2]
[329705098,1718591449913,-235.71029594,0.00017985,2]
[329705100,1718591449925,-1683.94321185,0.00018,2]
[329705102,1718591449941,-915.49784627,0.00018,2]
[329705104,1718591449962,-141.21274383,0.00018,2]
[329705106,1718591449994,-13.80275772,0.00018,2]
[329705108,1718591450008,-5310.79613059,0.00018,2]
[329705110,1718591450020,-432.9504408,0.00018028,2]
[329705112,1718591450031,-296.497372,0.00018028,2]
[329705114,1718591450041,-292.7278245,0.00018028,2]
[329705116,1718591450052,-410.7646814,0.00018028,2]
[329705118,1718591450062,-153.0,0.00018028,2]
[329705119,1718591450088,-292.7278245,0.00018028,2]
[329705121,1718591450101,-153.0,0.00018028,2]
[329705123,1718591450112,-154.3086588,0.00018028,2]
[329705125,1718591450133,-292.3979665,0.00018028,2]
[329705128,1718591450145,-153.0,0.00018028,2]
[329705129,1718591450170,-153.0,0.00018028,2]
[329705131,1718591450189,-153.0,0.00018028,2]
[329705133,1718591450203,-153.0,0.00018028,2]
[329705135,1718591450216,-153.0,0.00018028,2]
[329705137,1718591450230,-153.0,0.00018028,2]
[329705138,1718591450249,-153.0,0.00018028,2]
[329705141,1718591450277,-153.0,0.00018028,2]
[329705143,1718591450288,-153.0,0.00018028,2]
[329705144,1718591450303,-153.0,0.00018028,2]
[329705147,1718591450314,-153.0,0.00018028,2]
[329705148,1718591450325,-558.2,0.00018164,2]
[329705150,1718591450336,-500.0,0.00018164,2]
[329705152,1718591450346,-890.75,0.00018165,2]
[329705155,1718591450360,-500.0,0.00018165,2]
[329705157,1718591450380,-574.72,0.00018165,2]
[329705158,1718591450390,-500.0,0.00018165,2]
[329705169,1718591450403,-500.0,0.00018165,2]
[329705171,1718591450537,-782.13,0.00018166,2]
[329705173,1718591450561,-558.2,0.00018438,2]
[329705175,1718591450573,-500.0,0.00018438,2]
[329705177,1718591450584,-890.75,0.00018439,2]
[329705178,1718591450600,-500.0,0.00018439,2]
[329705181,1718591450625,-574.72,0.00018439,2]
[329705183,1718591450646,-254.67244827,0.00018439,2]
[329705184,1718591450660,-500.0,0.00018439,2]
[329705186,1718591450674,-782.13,0.0001844,2]
[329705188,1718591450685,-235.71029594,0.00018492,2]
[329705190,1718591450717,-150.0,0.00018592,2]
[329705192,1718591450761,-250.0,0.0001863,2]
[329705194,1718591450774,-558.2,0.00018712,2]
[329705196,1718591450785,-417.43696804,0.00018712,2]
[329705198,1718591450797,-890.75,0.00018713,2]
[329705200,1718591450810,-500.0,0.00018713,2]
[329705202,1718591450822,-574.72,0.00018713,2]
[329705204,1718591450833,-500.0,0.00018713,2]
[329705206,1718591450843,-782.13,0.00018714,2]
[329705208,1718591450866,-153.0,0.0001885,2]
[329705210,1718591450877,-156.0556828,0.0001885,2]
[329705212,1718591450896,-153.0,0.0001885,2]
[329705214,1718591450907,-558.2,0.00018986,2]
[329705216,1718591450921,-361.443564,0.00018986,2]
[329705219,1718591450938,-890.75,0.00018987,2]
[329705221,1718591450967,-500.0,0.00018987,2]
[329705225,1718591450987,-574.72,0.00018987,2]
[329705227,1718591451015,-500.0,0.00018987,2]
[329705229,1718591451026,-782.13,0.00018988,2]
[329705232,1718591451052,-175.70593278,0.00018995,2]
[329711743,1718591618920,3000.0,0.000225,30]
[329711751,1718592094557,18538.02210621,0.00017071,15]
[329711752,1718592139425,224.74840488,9.9e-05,2]
[329711756,1718592211799,164.64057133,9.999e-05,2]
[329711757,1718592226990,3000.0,0.000225,30]
[329711808,1718592634957,-150.0,0.00015848,2]
[329711809,1718592634973,-125.16174657,0.000159,2]
[329711822,1718592641335,-65.22886709,0.000159,2]
[329711823,1718592641346,-275.84951764,0.000165,2]
[329711824,1718592641367,-219.4008758,0.00016967,2]
[329711825,1718592641385,-219.40087577,0.00016968,2]
[329711826,1718592641400,-219.40087577,0.00016969,2]
[329711827,1718592641411,-219.40087577,0.00016969,2]
[329711828,1718592641422,-219.40087577,0.0001697,2]